{"text_format":"1","workbook":"xlsx","n_sheets":2,"sheets":["الحضور والانصراف","اعدادات"],"not_rendered":{"charts":0,"images":0,"macros":1,"external_links":1,"defined_names":9,"comments":0,"pivot_tables":0},"unopened":[],"bounds":{"document_bytes":16777216,"sheet_cells":100000,"rows_first":2000,"rows_last":500,"rows_between":2000,"halvings":0,"cell_chars":16384,"cell_head_chars":4096},"cells_cut":0,"cells_raw":0,"read":"whole","date_system":"1900"}

{"sheet":"الحضور والانصراف","index":0,"n_rows":111,"n_cols":45,"rows_kept":111,"cut":false,"hidden":false,"merged":[[2,13,2,15],[4,4,4,5],[4,6,4,8],[4,9,4,10],[4,11,4,12],[4,14,4,15],[4,35,4,44],[1,1,1,2],[1,5,1,6],[1,13,1,15],[1,39,1,44],[1,10,1,12],[1,36,1,38],[1,17,1,18],[1,20,1,21],[1,23,1,24],[2,1,2,2],[2,5,2,6],[2,7,2,8]]}
[null,null,"دفتر الحضور والانصراف",null,null,null,null,null,null,null,null,null,null,null,null,null,null,null,null,null,"ادخل مواعيد العمل",null,null,null,null,null,null,"لائحة التاخيرات",null,{"$f":"$U$2+AE1","v":9.15},0.15,"دقيقه","سماح",null,null,null,null,null,"تقر ير حضور موظف"]
[null,"اسم الشركة/",null," Elrify",null,"المواعيد/",null,9,5,null,"العطلات الاسبوعيه",null,null,"الجمعة",null,null,null,"مواعيد العمل",null,"من ",9,null,"الى",5,null,null,null,null,null,{"$f":"$U$2+AE2","v":9.3000000000000007},0.3,"دقيقه","ربع يوم",null,null,null,"اسم الموظف/"]
[null,"الشهر/",null,"ديسمبر",null,"العام/",null,2014,null,null,null,null,null,null,null,null,null,null,null,null,null,null,null,null,null,null,null,"اعداد /محمد الريفى",null,10,1,"ساعه","نصف يوم",null,null,null,null,null,"عن شهر/",{"$f":"$D$3","v":"ديسمبر"}]
[null,null,null,null,null,null,null,null,null,null,null,null,null,null,null,null,null,null,null,null,null,null,null,null,null,null,null,null,null,11,2,"ساعه","يوم كامل",null,null,null,null,null,null,"غ","ج","م","س"]
[null,null,null,null,"س = استئذان",null,null,null,null,"غ = غياب ",null,"م= ماموريه",null,null,"ج= اجازه",null,null,null,null,null,null,null,null,null,null,null,null,"BY Mohammed Elrify",null,null,null,null,null,null,null,{"$f":"CONCATENATE(\"تقرير حضور \",$AN$2,\"\")","v":"تقرير حضور "}]
[null,null,"م","اسم الموظف",{"$f":"IF(E7=\"\",\"\",INDEX(اعدادات!$D$2:$D$8,WEEKDAY(E7,16)))","v":"الإثنين"},{"$f":"IF(F7=\"\",\"\",INDEX(اعدادات!$D$2:$D$8,WEEKDAY(F7,16)))","v":"الثلاثاء"},{"$f":"IF(G7=\"\",\"\",INDEX(اعدادات!$D$2:$D$8,WEEKDAY(G7,16)))","v":"الأربعاء"},{"$f":"IF(H7=\"\",\"\",INDEX(اعدادات!$D$2:$D$8,WEEKDAY(H7,16)))","v":"الخميس"},{"$f":"IF(I7=\"\",\"\",INDEX(اعدادات!$D$2:$D$8,WEEKDAY(I7,16)))","v":"الجمعة"},{"$f":"IF(J7=\"\",\"\",INDEX(اعدادات!$D$2:$D$8,WEEKDAY(J7,16)))","v":"السبت"},{"$f":"IF(K7=\"\",\"\",INDEX(اعدادات!$D$2:$D$8,WEEKDAY(K7,16)))","v":"الأحد"},{"$f":"IF(L7=\"\",\"\",INDEX(اعدادات!$D$2:$D$8,WEEKDAY(L7,16)))","v":"الإثنين"},{"$f":"IF(M7=\"\",\"\",INDEX(اعدادات!$D$2:$D$8,WEEKDAY(M7,16)))","v":"الثلاثاء"},{"$f":"IF(N7=\"\",\"\",INDEX(اعدادات!$D$2:$D$8,WEEKDAY(N7,16)))","v":"الأربعاء"},{"$f":"IF(O7=\"\",\"\",INDEX(اعدادات!$D$2:$D$8,WEEKDAY(O7,16)))","v":"الخميس"},{"$f":"IF(P7=\"\",\"\",INDEX(اعدادات!$D$2:$D$8,WEEKDAY(P7,16)))","v":"الجمعة"},{"$f":"IF(Q7=\"\",\"\",INDEX(اعدادات!$D$2:$D$8,WEEKDAY(Q7,16)))","v":"السبت"},{"$f":"IF(R7=\"\",\"\",INDEX(اعدادات!$D$2:$D$8,WEEKDAY(R7,16)))","v":"الأحد"},{"$f":"IF(S7=\"\",\"\",INDEX(اعدادات!$D$2:$D$8,WEEKDAY(S7,16)))","v":"الإثنين"},{"$f":"IF(T7=\"\",\"\",INDEX(اعدادات!$D$2:$D$8,WEEKDAY(T7,16)))","v":"الثلاثاء"},{"$f":"IF(U7=\"\",\"\",INDEX(اعدادات!$D$2:$D$8,WEEKDAY(U7,16)))","v":"الأربعاء"},{"$f":"IF(V7=\"\",\"\",INDEX(اعدادات!$D$2:$D$8,WEEKDAY(V7,16)))","v":"الخميس"},{"$f":"IF(W7=\"\",\"\",INDEX(اعدادات!$D$2:$D$8,WEEKDAY(W7,16)))","v":"الجمعة"},{"$f":"IF(X7=\"\",\"\",INDEX(اعدادات!$D$2:$D$8,WEEKDAY(X7,16)))","v":"السبت"},{"$f":"IF(Y7=\"\",\"\",INDEX(اعدادات!$D$2:$D$8,WEEKDAY(Y7,16)))","v":"الأحد"},{"$f":"IF(Z7=\"\",\"\",INDEX(اعدادات!$D$2:$D$8,WEEKDAY(Z7,16)))","v":"الإثنين"},{"$f":"IF(AA7=\"\",\"\",INDEX(اعدادات!$D$2:$D$8,WEEKDAY(AA7,16)))","v":"الثلاثاء"},{"$f":"IF(AB7=\"\",\"\",INDEX(اعدادات!$D$2:$D$8,WEEKDAY(AB7,16)))","v":"الأربعاء"},{"$f":"IF(AC7=\"\",\"\",INDEX(اعدادات!$D$2:$D$8,WEEKDAY(AC7,16)))","v":"الخميس"},{"$f":"IF(AD7=\"\",\"\",INDEX(اعدادات!$D$2:$D$8,WEEKDAY(AD7,16)))","v":"الجمعة"},{"$f":"IF(AE7=\"\",\"\",INDEX(اعدادات!$D$2:$D$8,WEEKDAY(AE7,16)))","v":"السبت"},{"$f":"IF(AF7=\"\",\"\",INDEX(اعدادات!$D$2:$D$8,WEEKDAY(AF7,16)))","v":"الأحد"},{"$f":"IF(AG7=\"\",\"\",INDEX(اعدادات!$D$2:$D$8,WEEKDAY(AG7,16)))","v":"الإثنين"},{"$f":"IF(AH7=\"\",\"\",INDEX(اعدادات!$D$2:$D$8,WEEKDAY(AH7,16)))","v":"الثلاثاء"},{"$f":"IF(AI7=\"\",\"\",INDEX(اعدادات!$D$2:$D$8,WEEKDAY(AI7,16)))","v":"الأربعاء"},null,null,null,null,"غيابات واجازات",null,null,null,"تاخيرات"]
[null,null,null,null,{"$f":"DATE($H$3,INDEX(شهر,MATCH($D$3,الشهر,0)),1)","v":"2014-12-01"},{"$f":"E7+1","v":"2014-12-02"},{"$f":"F7+1","v":"2014-12-03"},"2014-12-04","2014-12-05","2014-12-06","2014-12-07","2014-12-08","2014-12-09","2014-12-10","2014-12-11","2014-12-12","2014-12-13","2014-12-14","2014-12-15","2014-12-16","2014-12-17","2014-12-18","2014-12-19","2014-12-20","2014-12-21","2014-12-22","2014-12-23","2014-12-24","2014-12-25",{"$f":"AC7+1","v":"2014-12-26"},"2014-12-27","2014-12-28",{"$f":"IF(MONTH($AF7+1)>MONTH($E$7),\"\",$AF7+1)","v":"2014-12-29"},{"$f":"IF(MONTH($AF7+2)>MONTH($E$7),\"\",$AF7+2)","v":"2014-12-30"},{"$f":"IF(MONTH($AF7+3)>MONTH($E$7),\"\",$AF7+3)","v":"2014-12-31"},"اليوم","التاريخ",null,"الحضور","غياب","اجازه","ماموريه","استئذانات","نوع التاخير","ملاحظات"]
[null,{"$f":"IF(ISNUMBER(SEARCH($AN$2,$D$8:D8)),ROW(),\"\")","v":8},{"$f":"IF(D8=\"\",\"\",COUNTA($D$7:D8))","v":1},"محمد الريفى 1",9.17,0,6,9,"ج",null,null,null,null,null,null,null,null,null,null,null,null,null,null,null,null,null,null,"س",null,null,null,null,null,null,null,{"$f":"TRANSPOSE(E6:AI35)","v":"الإثنين"},"2014-12-01",2,{"$f":"IFERROR(VLOOKUP($AN$2,$D$8:$AI$38,$AL8,0),\"\")","v":""},{"$f":"IF($AM8=AN$4,$AM8,\"\")","v":""},{"$f":"IF($AM8=AO$4,$AM8,\"\")","v":""},"","",{"$f":"IF(AM8<=$AD$1,\"\",IF(AM8<=$AD$2,$AG$2,IF(AM8<=$AD$3,$AG$3,IF(AM8<=$AD$4,$AG$4,\"\"))))","v":""}]
[null,{"$f":"IF(ISNUMBER(SEARCH($AN$2,$D$8:D9)),ROW(),\"\")","v":9},{"$f":"IF(D9=\"\",\"\",COUNTA($D$7:D9))","v":2},"محمد الريفى 2",null,10,11,null,2,5,6,7,8,9,null,null,null,null,null,null,null,null,null,null,null,null,11,null,null,null,null,12,null,12,null,"الثلاثاء","2014-12-02",{"$f":"AL8+1","v":3},{"$f":"IFERROR(VLOOKUP($AN$2,$D$8:$AI$38,$AL9,0),\"\")","v":""},{"$f":"IF($AM9=AN$4,$AM9,\"\")","v":""},"","","",{"$f":"IF(AM9<=$AD$1,\"\",IF(AM9<=$AD$2,$AG$2,IF(AM9<=$AD$3,$AG$3,IF(AM9<=$AD$4,$AG$4,\"\"))))","v":""}]
[null,{"$f":"IF(ISNUMBER(SEARCH($AN$2,$D$8:D10)),ROW(),\"\")","v":10},{"$f":"IF(D10=\"\",\"\",COUNTA($D$7:D10))","v":3},"محمد الريفى 3",null,null,null,null,null,null,null,null,null,null,null,null,null,null,null,null,null,null,null,null,null,null,null,null,null,null,null,null,null,null,null,"الأربعاء","2014-12-03",{"$f":"AL9+1","v":4},"","","","","",""]
[null,{"$f":"IF(ISNUMBER(SEARCH($AN$2,$D$8:D11)),ROW(),\"\")","v":11},{"$f":"IF(D11=\"\",\"\",COUNTA($D$7:D11))","v":4},"محمد الريفى 4",null,null,null,null,null,null,null,null,null,null,null,null,null,null,null,null,null,null,null,null,null,null,null,null,null,null,null,null,null,null,null,"الخميس","2014-12-04",5,"","","","","",""]
[null,{"$f":"IF(ISNUMBER(SEARCH($AN$2,$D$8:D12)),ROW(),\"\")","v":12},{"$f":"IF(D12=\"\",\"\",COUNTA($D$7:D12))","v":5},"محمد الريفى 5",null,null,null,null,null,null,null,null,null,null,null,null,null,null,null,null,null,null,null,null,null,null,null,null,null,null,null,null,null,null,null,"الجمعة","2014-12-05",6,"","","","","",""]
[null,{"$f":"IF(ISNUMBER(SEARCH($AN$2,$D$8:D13)),ROW(),\"\")","v":13},{"$f":"IF(D13=\"\",\"\",COUNTA($D$7:D13))","v":6},"محمد الريفى 6",null,null,null,null,null,null,null,null,null,null,null,null,null,null,null,null,null,null,null,null,null,null,null,null,null,null,null,null,null,null,null,"السبت","2014-12-06",7,"","","","","",""]
[null,{"$f":"IF(ISNUMBER(SEARCH($AN$2,$D$8:D14)),ROW(),\"\")","v":14},{"$f":"IF(D14=\"\",\"\",COUNTA($D$7:D14))","v":7},"محمد الريفى 7",null,null,null,null,null,null,null,null,null,null,null,null,null,null,null,null,null,null,null,null,null,null,null,null,null,null,null,null,null,null,null,"الأحد","2014-12-07",8,"","","","","",""]
[null,{"$f":"IF(ISNUMBER(SEARCH($AN$2,$D$8:D15)),ROW(),\"\")","v":15},{"$f":"IF(D15=\"\",\"\",COUNTA($D$7:D15))","v":8},"محمد الريفى 8",null,null,null,null,null,null,null,null,null,null,null,null,null,null,null,null,null,null,null,null,null,null,null,null,null,null,null,null,null,null,null,"الإثنين","2014-12-08",9,"","","","","",""]
[null,{"$f":"IF(ISNUMBER(SEARCH($AN$2,$D$8:D16)),ROW(),\"\")","v":16},{"$f":"IF(D16=\"\",\"\",COUNTA($D$7:D16))","v":9},"محمد الريفى 9",null,null,null,null,null,null,null,null,null,null,null,null,null,null,null,null,null,null,null,null,null,null,null,null,null,null,null,null,null,null,null,"الثلاثاء","2014-12-09",10,"","","","","",""]
[null,{"$f":"IF(ISNUMBER(SEARCH($AN$2,$D$8:D17)),ROW(),\"\")","v":17},{"$f":"IF(D17=\"\",\"\",COUNTA($D$7:D17))","v":10},"محمد الريفى 10",null,null,null,null,null,null,null,null,null,null,null,null,null,null,null,null,null,null,null,null,null,null,null,null,null,null,null,null,null,null,null,"الأربعاء","2014-12-10",11,"","","","","",""]
[null,{"$f":"IF(ISNUMBER(SEARCH($AN$2,$D$8:D18)),ROW(),\"\")","v":18},{"$f":"IF(D18=\"\",\"\",COUNTA($D$7:D18))","v":11},"محمد الريفى 11",null,null,null,null,null,null,null,null,null,null,null,null,null,null,null,null,null,null,null,null,null,null,null,null,null,null,null,null,null,null,null,"الخميس","2014-12-11",12,"","","","","",""]
[null,{"$f":"IF(ISNUMBER(SEARCH($AN$2,$D$8:D19)),ROW(),\"\")","v":19},{"$f":"IF(D19=\"\",\"\",COUNTA($D$7:D19))","v":12},"محمد الريفى 12",null,null,null,null,null,null,null,null,null,null,null,null,null,null,null,null,null,null,null,null,null,null,null,null,null,null,null,null,null,null,null,"الجمعة","2014-12-12",13,"","","","","",""]
[null,{"$f":"IF(ISNUMBER(SEARCH($AN$2,$D$8:D20)),ROW(),\"\")","v":20},{"$f":"IF(D20=\"\",\"\",COUNTA($D$7:D20))","v":13},"محمد الريفى 13",null,null,null,null,null,null,null,null,null,null,null,null,null,null,null,null,null,null,null,null,null,null,null,null,null,null,null,null,null,null,null,"السبت","2014-12-13",14,"","","","","",""]
[null,null,{"$f":"IF(D21=\"\",\"\",COUNTA($D$7:D21))","v":14},"محمد الريفى 14",null,null,null,null,null,null,null,null,null,null,null,null,null,null,null,null,null,null,null,null,null,null,null,null,null,null,null,null,null,null,null,"الأحد","2014-12-14",15,"","","","","",""]
[null,null,{"$f":"IF(D22=\"\",\"\",COUNTA($D$7:D22))","v":15},"محمد الريفى 15",null,null,null,null,null,null,null,null,null,null,null,null,null,null,null,null,null,null,null,null,null,null,null,null,null,null,null,null,null,null,null,"الإثنين","2014-12-15",16,"","","","","",""]
[null,null,{"$f":"IF(D23=\"\",\"\",COUNTA($D$7:D23))","v":16},"محمد الريفى 16",null,null,null,null,null,null,null,null,null,null,null,null,null,null,null,null,null,null,null,null,null,null,null,null,null,null,null,null,null,null,null,"الثلاثاء","2014-12-16",17,"","","","","",""]
[null,null,{"$f":"IF(D24=\"\",\"\",COUNTA($D$7:D24))","v":17},"محمد الريفى 17",null,null,null,null,null,null,null,null,null,null,null,null,null,null,null,null,null,null,null,null,null,null,null,null,null,null,null,null,null,null,null,"الأربعاء","2014-12-17",18,"","","","","",""]
[null,null,{"$f":"IF(D25=\"\",\"\",COUNTA($D$7:D25))","v":18},"محمد الريفى 18",null,null,null,null,null,null,null,null,null,null,null,null,null,null,null,null,null,null,null,null,null,null,null,null,null,null,null,null,null,null,null,"الخميس","2014-12-18",19,"","","","","",""]
[null,{"$f":"IF(ISNUMBER(SEARCH($AN$2,$D$8:D26)),ROW(),\"\")","v":26},{"$f":"IF(D26=\"\",\"\",COUNTA($D$7:D26))","v":19},"محمد الريفى 19",null,null,null,null,null,null,null,null,null,null,null,null,null,null,null,null,null,null,null,null,null,null,null,null,null,null,null,null,null,null,null,"الجمعة","2014-12-19",20,"","","","","",""]
[null,{"$f":"IF(ISNUMBER(SEARCH($AN$2,$D$8:D27)),ROW(),\"\")","v":27},{"$f":"IF(D27=\"\",\"\",COUNTA($D$7:D27))","v":20},"محمد الريفى 20",null,null,null,null,null,null,null,null,null,null,null,null,null,null,null,null,null,null,null,null,null,null,null,null,null,null,null,null,null,null,null,"السبت","2014-12-20",21,"","","","","",""]
[null,null,{"$f":"IF(D28=\"\",\"\",COUNTA($D$7:D28))","v":""},null,null,null,null,null,null,null,null,null,null,null,null,null,null,null,null,null,null,null,null,null,null,null,null,null,null,null,null,null,null,null,null,"الأحد","2014-12-21",22,"","","","","",""]
[null,{"$f":"IF(ISNUMBER(SEARCH($AN$2,$D$8:D29)),ROW(),\"\")","v":""},{"$f":"IF(D29=\"\",\"\",COUNTA($D$7:D29))","v":""},null,null,null,null,null,null,null,null,null,null,null,null,null,null,null,null,null,null,null,null,null,null,null,null,null,null,null,null,null,null,null,null,"الإثنين","2014-12-22",23,"","","","","",""]
[null,{"$f":"IF(ISNUMBER(SEARCH($AN$2,$D$8:D30)),ROW(),\"\")","v":""},{"$f":"IF(D30=\"\",\"\",COUNTA($D$7:D30))","v":""},null,null,null,null,null,null,null,null,null,null,null,null,null,null,null,null,null,null,null,null,null,null,null,null,null,null,null,null,null,null,null,null,"الثلاثاء","2014-12-23",24,"","","","","",""]
[null,{"$f":"IF(ISNUMBER(SEARCH($AN$2,$D$8:D31)),ROW(),\"\")","v":""},{"$f":"IF(D31=\"\",\"\",COUNTA($D$7:D31))","v":""},null,null,null,null,null,null,null,null,null,null,null,null,null,null,null,null,null,null,null,null,null,null,null,null,null,null,null,null,null,null,null,null,"الأربعاء","2014-12-24",25,"","","","","",""]
[null,null,{"$f":"IF(D32=\"\",\"\",COUNTA($D$7:D32))","v":""},null,null,null,null,null,null,null,null,null,null,null,null,null,null,null,null,null,null,null,null,null,null,null,null,null,null,null,null,null,null,null,null,"الخميس","2014-12-25",26,"","","","","",""]
[null,null,{"$f":"IF(D33=\"\",\"\",COUNTA($D$7:D33))","v":""},null,null,null,null,null,null,null,null,null,null,null,null,null,null,null,null,null,null,null,null,null,null,null,null,null,null,null,null,null,null,null,null,"الجمعة","2014-12-26",27,"","","","","",""]
[null,null,{"$f":"IF(D34=\"\",\"\",COUNTA($D$7:D34))","v":""},null,null,null,null,null,null,null,null,null,null,null,null,null,null,null,null,null,null,null,null,null,null,null,null,null,null,null,null,null,null,null,null,"السبت","2014-12-27",28,"","","","","",""]
[null,null,{"$f":"IF(D35=\"\",\"\",COUNTA($D$7:D35))","v":""},null,null,null,null,null,null,null,null,null,null,null,null,null,null,null,null,null,null,null,null,null,null,null,null,null,null,null,null,null,null,null,null,"الأحد","2014-12-28",29,"","","","","",""]
[null,null,{"$f":"IF(D36=\"\",\"\",COUNTA($D$7:D36))","v":""},null,null,null,null,null,null,null,null,null,null,null,null,null,null,null,null,null,null,null,null,null,null,null,null,null,null,null,null,null,null,null,null,{"$f":"TRANSPOSE(E34:AI68)","v":0},"00:00:00",30,"","","","","",""]
[null,null,{"$f":"IF(D37=\"\",\"\",COUNTA($D$7:D37))","v":""},null,null,null,null,null,null,null,null,null,null,null,null,null,null,null,null,null,null,null,null,null,null,null,null,null,null,null,null,null,null,null,null,{"$f":"TRANSPOSE(E35:AI69)","v":0},"00:00:00",31,"","","","","",""]
[null,null,{"$f":"IF(D38=\"\",\"\",COUNTA($D$7:D38))","v":""},null,null,null,null,null,null,null,null,null,null,null,null,null,null,null,null,null,null,null,null,null,null,null,null,null,null,null,null,null,null,null,null,{"$f":"TRANSPOSE(E36:AI70)","v":0},"00:00:00",32,"","","","","",""]
[null,null,null,null,null,null,null,null,null,null,null,null,null,null,null,null,null,null,null,null,null,null,null,null,null,null,null,null,null,null,null,null,null,null,null,"اجماليات",null,null,null,{"$f":"COUNTIF(AN$8:AN$38,AN$4)","v":0},{"$f":"COUNTIF(AO$8:AO$38,AO$4)","v":0},{"$f":"COUNTIF(AP$8:AP$38,AP$4)","v":0},{"$f":"COUNTIF(AQ$8:AQ$38,AQ$4)","v":0}]
[]
[]
[]
[]
[null,null,{"$f":"IFERROR(SMALL($B$8:$B$31,ROW()-43),\"__\")","v":8},{"$f":"IFERROR(VLOOKUP(C44,$B$8:$D$31,3,0),\"\")","v":"محمد الريفى 1"}]
[null,null,{"$f":"IFERROR(SMALL($B$8:$B$31,ROW()-32),\"__\")","v":20},{"$f":"IFERROR(VLOOKUP(C45,$B$8:$D$31,3,0),\"\")","v":"محمد الريفى 13"}]
[null,null,26,"محمد الريفى 19"]
[null,null,27,"محمد الريفى 20"]
[null,null,"__",""]
[null,null,"__",""]
[null,null,"__",""]
[null,null,"__",""]
[null,null,"__",""]
[null,null,"__",""]
[null,null,"__",""]
[null,null,"__",""]
[null,null,"__",""]
[null,null,"__",""]
[null,null,"__",""]
[null,null,"__",""]
[null,null,"__",""]
[null,null,"__",""]
[null,null,"__",""]
[null,null,"__",""]
[null,null,"__",""]
[null,null,"__",""]
[null,null,"__",""]
[null,null,"__",""]
[null,null,"__",""]
[null,null,"__",""]
[null,null,"__",""]
[null,null,"__",""]
[null,null,"__",""]
[null,null,{"$f":"IFERROR(SMALL($B$8:$B$31,ROW()-32),\"\")","v":""}]
[null,null,""]
[null,null,""]
[null,null,""]
[null,null,""]
[null,null,""]
[null,null,""]
[null,null,""]
[null,null,""]
[null,null,""]
[null,null,""]
[null,null,""]
[null,null,""]
[null,null,""]
[null,null,""]
[null,null,""]
[null,null,""]
[null,null,""]
[null,null,""]
[null,null,""]
[null,null,""]
[null,null,""]
[null,null,""]
[null,null,""]
[null,null,""]
[null,null,""]
[null,null,""]
[null,null,""]
[null,null,""]
[null,null,""]
[null,null,""]
[null,null,""]
[null,null,""]
[null,null,""]
[null,null,""]
[null,null,""]
[null,null,""]
[null,null,""]
[null,null,""]

{"sheet":"اعدادات","index":1,"n_rows":13,"n_cols":6,"rows_kept":13,"cut":false,"hidden":true,"merged":[]}
[null,"الشهر",null,"الاسبوع"]
[1,"يناير",7,"السبت",null,"غ"]
[2,"فبراير",1,"الأحد",null,"ج"]
[3,"مارس",2,"الإثنين",null,"م"]
[4,"أبريل",3,"الثلاثاء",null,"س"]
[5,"مايو",4,"الأربعاء"]
[6,"يونيو",5,"الخميس"]
[7,"يوليو",6,"الجمعة"]
[8,"أغسطس"]
[9,"سبتمبر"]
[10,"أكتوبر"]
[11,"نوفمبر"]
[12,"ديسمبر"]